[Event "4th Tata Steel India Blitz Women 2022"]
[Site "Kolkota"]
[Date "2022.12.03"]
[Round "1.4"]
[White "Savitha Shri B"]
[Black "Dzagnidze, Nana"]
[Result "1-0"]
[ECO "B53"]
[WhiteElo "2411"]
[BlackElo "2517"]
[Annotator "TA"]
[PlyCount "79"]
[EventDate "2022.11.29"]
[EventType "tourn"]
[EventCountry "IND"]
[SourceTitle "playchess.com"]
[Source "ChessBase"]
[SourceQuality "1"]
[TimeControl "180+2"]

{[%evp 9,78,16,16,15,33,13,22,18,31,0,58,61,66,66,65,66,91,99,91,79,88,64,141,131,145,67,115,89,105,41,41,51,56,35,41,16,52,0,27,0,0,0,0,0,0,-59,-51,-40,-37,-65,-44,-118,-75,-111,-97,-92,-54,-162,-147,-291,-212,-743,-106,-711,0,-511,201,-498,801,161,29999]} 1. e4 {[%emt 0:00:01]} c5 {[%emt 0:00:02]} 2. Nf3 {[%emt 0:00:02]} d6 {[%emt 0:00:01]} 3. d4 {[%emt 0:00:01]} cxd4 {[%emt 0:00:01]} 4. Qxd4 {[%emt 0:00:02]} a6 {[%emt 0:00:04]} 5. Be2 {[%emt 0:00:02]} Nc6 {[%emt 0:00:02]} 6. Qe3 {[%emt 0:00:01] B53: Sicilian: 2...d6: Lines with Qxd4.} g6 {[%emt 0:00:09]} 7. O-O {[%emt 0:00:03]} Bg7 8. Rd1 $1 {[%emt 0:00:05][%mdl 4] The position is equal. is recently more successful than 8.h3.} Nf6 {[%emt 0:00:32]} 9. h3 {[%emt 0:00:01]} Bd7 {[%emt 0:00:04]} ({Black should try} 9... O-O $11) 10. c4 $14 {[%emt 0:00:02]} O-O {[%emt 0:00:03]} 11. Nc3 {[%emt 0:00:01]} Rb8 {[%emt 0:00:14]} 12. Rb1 {[%emt 0:00:06]} Ne8 {[%emt 0:00:29] [#]} 13. b3 $146 {[%emt 0:00:30]} ({Predecessor:} 13. b4 Nc7 14. c5 dxc5 15. bxc5 e5 16. Nd5 Nd4 17. Nxd4 exd4 18. Rxd4 Bc6 19. Rd1 {1-0 (29) Daulyte Cornette,D (2364)-Liang,A (2266) Doha 2014}) 13... Nc7 {[%emt 0:00:03]} 14. Bb2 {[%emt 0:00:05]} b5 {[%emt 0:00:04]} 15. Nd5 {[%emt 0:00:22]} Bxb2 {[%emt 0:00:28]} (15... e5 $14) 16. Rxb2 $16 {[%emt 0:00:01]} f6 {[%emt 0:00:09]} 17. h4 {[%emt 0:00:18] White is much more active.} (17. c5 $16) 17... Ne6 {[%emt 0:00:06]} (17... Ne5 $14 {is more appropriate.}) 18. h5 {[%emt 0:00:14]} g5 {[%emt 0:00:03]} 19. Nh2 {[%emt 0:00:28]} ({Better is} 19. b4 $1 $16) 19... Ne5 {[%emt 0:00:05]} 20. cxb5 {[%emt 0:00:27]} axb5 {[%emt 0:00:01]} 21. Ng4 {[%emt 0:00:07]} Kh8 {[%emt 0:00:12][%cal Oe6f4]} 22. Nh6 {[%emt 0:00:10]} (22. Rbd2 $5 {[%cal Rd5f6]}) 22... Ng7 {[%emt 0:00:38]} 23. Rbd2 {[%emt 0:00:11]} (23. Rc2 $14) 23... Be8 {[%emt 0:00:09]} 24. Nf5 {[%emt 0:00:08]} Nxf5 {[%emt 0:00:02]} 25. exf5 {[%emt 0:00:01]} Bc6 {[%emt 0:00:02]} 26. Qg3 {[%emt 0:00:14]} Qd7 {[%emt 0:00:03]} 27. b4 {[%emt 0:00:04]} (27. h6 $11) 27... Bxd5 {[%emt 0:00:03]} (27... g4 {is interesting.} 28. Bxg4 Rg8 29. f3 Bxd5 30. Rxd5 Rbc8) 28. Rxd5 {[%emt 0:00:01]} Qxf5 {[%emt 0:00:02]} 29. Bd3 {[%emt 0:00:05] Against Qc2} Qd7 {[%emt 0:00:03]} 30. Bb1 {[%emt 0:00:01]} (30. Be2 $15) 30... Rbc8 {[%emt 0:00:02]} 31. Qe3 {[%emt 0:00:02]} Qe8 {[%emt 0:00:03]} 32. h6 {[%emt 0:00:02]} Qf7 {[%emt 0:00:01]} (32... Qh5 {is more complex.} 33. Bf5 Rce8 34. Bc2 Rb8) 33. Qe4 {[%emt 0:00:03]} (33. Rxb5 $15 Rc4 34. Rd4) 33... Rc4 $19 {[%emt 0:00:02]} 34. Qe3 {[%emt 0:00:03]} (34. R5d4 $17 {might work better.}) 34... Rxb4 {[%emt 0:00:02]} 35. a3 $2 {[#]} (35. R5d4 Rxd4 36. Qxd4) 35... Rb2 $2 {[%emt 0:00:03]} (35... Qxd5 $3 $19 {[%mdl 512] has better winning chances.} 36. Bc2 Qc6 37. axb4 Qxc2) 36. Qc3 $2 {[%emt 0:00:02][%mdl 8192] [#]} (36. Qc1 $17 Re2 37. Rxb5) 36... Nc4 $2 {[%emt 0:00:01]} (36... Rxb1 $1 $19 37. Rxb1 Qxd5) 37. a4 $2 {[%emt 0:00:04][%mdl 8192] [#]} (37. Rxg5 $11 {and White stays safe.} Rb3 38. Qxb3 fxg5 39. Qc2) 37... Rc8 $4 {[%emt 0:00:04][%mdl 8192]} (37... Rxb1 $1 $19 38. Rxb1 Qxd5 39. axb5 Rc8) 38. axb5 $4 {[%emt 0:00:02][%mdl 8192] [#]} (38. Rxg5 $18 {and life is good for White. Threatens to win with Rg7.} b4 39. Qh3) 38... Qe6 $4 {[%emt 0:00:02][%mdl 8192]} (38... Rxb1 $1 $19 {[%mdl 512]} 39. Rxb1 (39. Qh3 Rxd1+) 39... Qxd5) 39. Qd3 $2 {[%emt 0:00:01]} (39. Bf5 Qe2 40. Rf1) 39... Ne5 $2 {[%emt 0:00:01]} (39... Qf7 $18) 40. Qxh7# {[%emt 0:00:01] Never resign too early!   Weighted Error Value: White=1.12/Black=0.75} 1-0

[Event "4th Tata Steel India Blitz Women 2022"]
[Site "Kolkota"]
[Date "2022.12.03"]
[Round "1.5"]
[White "Muzychuk, Anna"]
[Black "Koneru, Humpy"]
[Result "0-1"]
[ECO "C43"]
[WhiteElo "2525"]
[BlackElo "2574"]
[Annotator "TA"]
[PlyCount "32"]
[EventDate "2022.11.29"]
[EventType "tourn"]
[EventCountry "IND"]
[SourceTitle "playchess.com"]
[Source "ChessBase"]
[SourceQuality "1"]
[TimeControl "180+2"]

{[%evp 9,32,0,0,0,0,0,0,0,0,0,11,14,12,5,5,-109,-126,-120,-126,-448,-447,-755,-731,-808,-785]} 1. e4 {[%emt 0:00:00]} e5 {[%emt 0:00:02]} 2. Nf3 {[%emt 0:00:01]} Nf6 {[%emt 0:00:03][%cal Bg8f6,Bf6e4,Be4f2,Bf2h1][%mdl 32]} 3. d4 {[%emt 0:00:02]} Nxe4 {[%emt 0:00:02]} 4. dxe5 {[%emt 0:00:01]} Bc5 {[%emt 0:00:02]} (4... d5 5. Nbd2 Nxd2 6. Bxd2 Be7 7. Bd3 c5 8. c3 Bg4 9. h3 Bh5 10. O-O Nc6 11. Re1 Qd7 12. Bf4 a6 13. a4 Nd8 14. g4 Ne6 15. Bg3 Bg6 16. Bf5 Qc6 17. a5 {½-½ (32) Muzychuk,A (2534)-Koneru,H (2574) Monaco 2022}) 5. Bc4 {[%emt 0:00:07]} Nxf2 {[%emt 0:00:03]} (5... Bxf2+ 6. Kf1 d5 7. Qxd5 Qxd5 8. Bxd5 $16) 6. Bxf7+ $1 {[%emt 0:00:01][%mdl 64] [#] Decoy. C43: Petroff Defence: 3 d4.} Kxf7 {[%emt 0:00:02][%cal Be8f7,Bf7g6,Bg6h7,Bh7h8][%mdl 32]} 7. Qd5+ {[%emt 0:00:02]} Kg6 {[%emt 0:00:02]} 8. Qxc5 {[%emt 0:00:03] The position is equal.} Nxh1 {[%emt 0:00:03]} 9. Nc3 {[%emt 0:00:04] Hoping for Qc4.} d6 $5 {[%emt 0:00:02][%mdl 4] An interesting side line.} (9... d5 10. Nxd5 h6 11. Qc4 $16) 10. Qc4 {[%emt 0:00:09] aiming for e6.} h6 $1 {[%emt 0:00:02] [#]} 11. e6 $146 {[%emt 0:00:14] Intending Qe4+ and mate.} ({Predecessor:} 11. Nd5 Rf8 12. Qe4+ Kf7 13. Bxh6 gxh6 14. Qh7+ Ke8 15. Nxc7+ Qxc7 16. Qxc7 Na6 17. Qxd6 Bf5 18. O-O-O Rc8 19. Nd4 Rd8 20. Qxh6 Nf2 21. Qh5+ Kd7 22. e6+ {1-0 (22) Almasi,Z (2707)-Giri,A (2714) Beijing 2011}) 11... Kh7 {[%emt 0:00:04] Strongly threatening ...Qe8.} 12. Nd5 {[%emt 0:00:15] [#]} (12. Qe4+ $11 {was the only way to keep the balance.} Kg8 13. Nd5) 12... Re8 $1 $17 {[%emt 0:00:13]} (12... Bxe6 $2 13. Qe4+ g6 14. Qxe6 $18) 13. Nxc7 {[%emt 0:01:07]} Bxe6 $1 {[%emt 0:00:17]} ({But not} 13... d5 $6 14. Qd3+ Kg8 15. Nxa8 $11) 14. Nxe6 {[%emt 0:00:02][%mdl 8192]} (14. Qe4+ $17 {nothing else works.} Kh8 15. Nxe8 Qxe8 16. Kf1) 14... Qf6 $19 {[%emt 0:00:21] Black is clearly winning.} ({Inferior is} 14... Qb6 15. Qg4 Rxe6+ 16. Qxe6 Qf2+ 17. Kd1 Qf1+ 18. Kd2 (18. Ne1 $2 Nf2+ 19. Kd2 Nc6 $19) 18... Qxg2+ 19. Qe2 $17) 15. Nfd4 {[%emt 0:00:37]} (15. Kf1 $142 Rxe6 16. Bd2) 15... Nc6 {[%emt 0:00:07]} 16. Qd3+ {[%emt 0:00:26]} Kh8 {[%emt 0:00:02] Weighted Error Value: White=0.90/Black=0.03 (flawless)} 0-1

[Event "4th Tata Steel India Blitz Women 2022"]
[Site "Kolkota"]
[Date "2022.12.03"]
[Round "2.1"]
[White "Kulkarni Bhakti"]
[Black "Savitha Shri B"]
[Result "0-1"]
[ECO "D00"]
[WhiteElo "2359"]
[BlackElo "2411"]
[Annotator "TA"]
[PlyCount "134"]
[EventDate "2022.11.29"]
[EventType "tourn"]
[EventCountry "IND"]
[SourceTitle "playchess.com"]
[Source "ChessBase"]
[SourceQuality "1"]
[TimeControl "180+2"]

{[%evp 9,134,0,0,3,6,2,0,2,2,6,0,2,1,0,41,33,54,48,59,0,58,61,66,58,69,66,61,62,63,65,70,56,68,81,95,85,132,25,130,-49,59,53,115,114,363,369,381,-69,89,102,117,128,71,64,396,35,120,0,0,0,541,517,621,597,558,359,313,328,269,258,333,309,271,221,373,386,378,372,29977,595,831,868,952,933,644,809,723,430,390,58,609,583,465,286,615,578,614,456,622,579,641,619,1155,754,916,779,1067,733,1441,1390,1386,1349,1206,8,8,0,8,0,0,0,0,0,0,-9,-9,-29988,-29989]} 1. d4 {[%emt 0:00:01]} Nf6 {[%emt 0:00:01]} 2. Nf3 {[%emt 0:00:02]} g6 {[%emt 0:00:01]} 3. Nc3 {[%emt 0:00:01]} d5 {[%emt 0:00:01]} 4. Bf4 {[%emt 0:00:02]} Bg7 {[%emt 0:00:03]} 5. Nb5 {[%emt 0:00:02]} Na6 {[%emt 0:00:02]} 6. e3 {[%emt 0:00:04] D00: 1 d4 d5: Unusual lines.} c6 {[%emt 0:00:01]} 7. Nc3 {[%emt 0:00:02]} Nc7 {[%emt 0:00:02]} 8. h3 {[%emt 0:00:04] The position is equal.} O-O {[%emt 0:00:02][%cal Oc6c5]} 9. Bd3 {[%emt 0:00:03]} c5 {[%emt 0:00:12]} 10. O-O {[%emt 0:00:37]} Ne6 {[%emt 0:00:27]} 11. Be5 {[%emt 0:00:05] [#]} cxd4 $146 {[%emt 0:00:47]} ({Predecessor:} 11... b6 12. a4 Bb7 13. a5 bxa5 14. Ra3 cxd4 15. Nxd4 Nc5 16. Bb5 Rc8 17. Qa1 a6 {0-1 (46) Zakarian,D (2349)-Jones,G (2659) England 2018}) 12. exd4 {[%emt 0:00:03]} a6 {[%emt 0:00:06]} 13. Re1 {[%emt 0:00:11]} b5 {[%emt 0:00:05]} 14. Bxf6 {[%emt 0:00:11]} (14. Ne2 $14) 14... Bxf6 {[%emt 0:00:01] [#]} ({Black should try} 14... exf6 $11 15. a4 bxa4) 15. Nxd5 $1 $14 {[%emt 0:00:02][%cal Bc3d5,Bd5e3,Be3c4,Bc4e5][%mdl 32]} Bg7 {[%emt 0:00:35] [#]} (15... Qxd5 $2 16. Be4 Qc4 17. Bxa8 $16) 16. c3 $1 {[%emt 0:00:31]} Bb7 {[%emt 0:00:02]} (16... Qxd5 $2 17. Be4 Qd6 18. Bxa8 $18) 17. Ne3 {[%emt 0:00:02]} b4 {[%emt 0:00:05]} 18. Rc1 {[%emt 0:00:39]} bxc3 {[%emt 0:00:01]} 19. bxc3 {[%emt 0:00:01]} Rc8 {[%emt 0:00:04]} 20. Bf1 {[%emt 0:00:08]} Qa5 {[%emt 0:00:07]} 21. Nc4 $1 {[%emt 0:00:18]} Qh5 {[%emt 0:00:19]} 22. Nce5 {[%emt 0:00:10]} Nf4 {[%emt 0:00:05]} (22... Ng5 $142) 23. Rb1 {[%emt 0:00:12]} (23. c4 $16) 23... Ba8 {[%emt 0:00:07]} (23... Bxf3 $11 {keeps the balance.} 24. Qxf3 Qxf3 25. Nxf3 Rxc3) 24. h4 $2 {[%emt 0:00:06]} (24. Bxa6 $6 Rxc3 25. Bb7 Qf5 $14) (24. c4 $1 $16) 24... f6 {[%emt 0:00:19]} (24... Rxc3 $15 25. Qd2 Rxf3 26. Nxf3 Nh3+ 27. Kh2 Bxf3 28. gxh3 (28. Kxh3 $2 Qg4+ 29. Kh2 Qxh4+ 30. Kg1 Bh6 $19) 28... Qxh4) 25. Nd3 $1 {[%emt 0:00:11]} Nh3+ {[%emt 0:00:04]} 26. Kh2 $1 $16 {[%emt 0:00:02]} Rxc3 $2 {[%emt 0:00:05]} (26... Ng5 $16 27. Nxg5 (27. Rxe7 $2 Nxf3+ 28. gxf3 Bxf3 $17) (27. Qb3+ Kh8 $11) 27... Qxd1 28. Rbxd1 (28. Rexd1 fxg5 29. hxg5 Rxc3 $14) 28... fxg5) 27. Kxh3 $18 {[%emt 0:00:02]} g5 {[%emt 0:00:02]} 28. g3 $2 {[%emt 0:00:01]} g4+ $2 {[%emt 0:00:01]} (28... Qxf3 29. Qxf3 Bxf3 30. Rxe7 $14) (28... Bxf3 $15 {stays ahead.} 29. Be2 Bxe2 30. Rxe2 gxh4) 29. Kh2 $16 {[%emt 0:00:01][%cal Oe1e7]} Bxf3 {[%emt 0:00:02]} (29... gxf3 $2 30. Rxe7 Qd5 31. Qe1 $18) 30. Qd2 $36 {[%emt 0:00:01][%mdl 2048] Keeping Black busy.} Rc7 {[%emt 0:00:01]} 31. Nf4 {[%emt 0:00:02]} (31. Nc5 {feels hotter.} Bh6 32. Qd3 Rfc8 33. Qc2) 31... Qf5 {[%emt 0:00:04][%mdl 8192]} (31... Bh6 $1 $14) 32. Bxa6 $2 {[%emt 0:00:04]} ({Only move:} 32. Bd3 $1 $18 {[%cal Rd3f5]} Qc8 33. Ne6) 32... Rc2 {[%emt 0:00:02]} (32... Bh6 $1 $14) 33. Bd3 {[%emt 0:00:00]} (33. Qe3 $16 e5 34. Bd3 exf4 35. Bxf5 fxe3 36. Bxc2 exf2 37. Rf1) 33... Rxd2 $11 {[%emt 0:00:01] The board is on fire.} 34. Bxf5 {[%emt 0:00:02]} Rxf2+ $2 {[%emt 0:00:01][%mdl 8192]} (34... e5 $11 {and Black is okay.} 35. Nd3 e4) 35. Kg1 $18 {[%emt 0:00:02]} Rd2 {[%emt 0:00:07]} 36. Rxe7 {[%emt 0:00:00]} Rd8 {[%emt 0:00:05]} 37. Rxg7+ {[%emt 0:00:01]} Kxg7 {[%emt 0:00:01]} 38. Ne6+ {[%emt 0:00:00]} Kh6 {[%emt 0:00:03]} 39. Nxd8 {[%emt 0:00:01]} Rg2+ {[%emt 0:00:00]} 40. Kf1 {[%emt 0:00:01]} Rxg3 {[%emt 0:00:01]} 41. Rb6 {[%emt 0:00:01]} Rh3 $2 {[%emt 0:00:04]} (41... Kh5 42. Rxf6 Kxh4) 42. Rxf6+ {[%emt 0:00:02]} Kh5 {[%emt 0:00:01]} 43. Bxh7 {[%emt 0:00:01]} Rxh4 $2 {[%emt 0:00:04]} (43... Kxh4 $18 44. Kf2 Bd5 45. Rh6+ Kg5 46. Rxh3 gxh3) 44. a4 {[%emt 0:00:02]} (44. Nf7 $142 g3 45. Rh6+ Kg4 46. Ne5+ Kg5 47. Nxf3+ Kxh6 48. Nxh4 Kxh7 49. a4) 44... Rh1+ {[%emt 0:00:01]} 45. Kf2 {[%emt 0:00:00] White wants to mate with Nf7.} Rh2+ {[%emt 0:00:01]} 46. Ke3 {[%emt 0:00:01] Threatening mate with Nf7.} Re2+ {[%emt 0:00:01]} 47. Kf4 {[%emt 0:00:01] Nf7 would kill now.} Rf2 {[%emt 0:00:03]} 48. Bg6+ {[%emt 0:00:07]} Kh4 {[%emt 0:00:03]} 49. Bf5 $2 {[%emt 0:00:01]} (49. Rf5 $18 {[%csl Gg6][%cal Rf5h5]} Bd1+ 50. Ke5 Re2+ 51. Kd6) 49... Bg2+ $2 {[%emt 0:00:03][%mdl 8192]} (49... g3 $14 50. Ke5 Re2+ 51. Kf4 Rf2) 50. Ke3 {[%emt 0:00:02]} Rf3+ {[%emt 0:00:02]} 51. Ke2 {[%emt 0:00:01]} Kg3 $2 {[%emt 0:00:00]} (51... Kg5 $2 52. Rf8 Bf1+ 53. Ke1 $18) (51... Bf1+ 52. Ke1 Bd3 53. Rh6+ Kg5) 52. Ne6 {[%emt 0:00:05]} Rf2+ {[%emt 0:00:01]} 53. Ke1 {[%emt 0:00:03]} Rf1+ {[%emt 0:00:03] [#]} 54. Kd2 $1 {[%emt 0:00:01]} Rf2+ {[%emt 0:00:00]} 55. Kc3 {[%emt 0:00:00]} Be4 {[%emt 0:00:03]} 56. Ng7 {[%emt 0:00:04]} Bd5 {[%emt 0:00:05] [#]} 57. Bd3 $1 {[%emt 0:00:04] And now Nh5+ would win.} Bf3 {[%emt 0:00:03]} (57... Ra2 58. Nf5+) 58. Nh5+ {[%emt 0:00:02]} Kg2 {[%emt 0:00:00]} 59. a5 {[%emt 0:00:01][%cal Ba4a5,Ba5a6][%mdl 32]} Ra2 {[%emt 0:00:01]} 60. a6 {[%emt 0:00:01]} g3 {[%emt 0:00:01]} 61. Rg6 $2 {[%emt 0:00:01]} Bxh5 $11 {[%emt 0:00:05][%mdl 4096] Endgame KRB-KRB} 62. Rg7 {[%emt 0:00:02] Hoping for d5.} Bf3 {[%emt 0:00:01] Against d5} 63. a7 {[%emt 0:00:02]} Kf2 {[%emt 0:00:01]} 64. Bc4 {[%emt 0:00:07]} Ra3+ {[%emt 0:00:01]} (64... Ra1 $5 65. Kb2 $8 Ra5 $11) 65. Kb4 {[%emt 0:00:01]} Ra1 {[%emt 0:00:01] Threatens to win with ...g2.} 66. Rf7 {[%emt 0:00:05] aiming for Bd5.} g2 {[%emt 0:00:01]} 67. d5 $2 {[%emt 0:00:05][%mdl 8192]} (67. Rxf3+ $11 Kxf3 68. Bd5+ Kg4 69. Bxg2 Rxa7 70. Bc6) 67... g1=Q {[%emt 0:00:02] What a bad dream for White.   Weighted Error Value: White=0.83/Black=0.78} ({Less strong is} 67... g1=B 68. d6 Kg3 69. Rg7+ (69. d7 Bb6 $11) 69... Kf4 {[#]} 70. Rxg1 $1 (70. Rf7+ Ke5 $11) 70... Rxg1 71. d7 $14) 0-1

[Event "4th Tata Steel India Blitz Women 2022"]
[Site "Kolkota"]
[Date "2022.12.03"]
[Round "2.2"]
[White "Dzagnidze, Nana"]
[Black "Vaishali, Rameshbabu"]
[Result "0-1"]
[ECO "A28"]
[WhiteElo "2517"]
[BlackElo "2454"]
[Annotator "TA"]
[PlyCount "52"]
[EventDate "2022.11.29"]
[EventType "tourn"]
[EventCountry "IND"]
[SourceTitle "playchess.com"]
[Source "ChessBase"]
[SourceQuality "1"]
[TimeControl "180+2"]

{[%evp 12,52,-8,-7,-16,-81,-81,-81,-80,-94,-69,-62,-72,-88,-61,-62,-58,-51,-41,-43,-31,-44,-16,-37,-27,-30,-10,-18,0,-18,0,-21,-15,-62,-58,-410,-402,-397,-393,-502,-499,-549,-538]} 1. c4 {[%emt 0:00:01]} e5 {[%emt 0:00:02][%cal Be7e5,Be5e4][%mdl 32]} 2. Nc3 {[%emt 0:00:03]} Nc6 {[%emt 0:00:02]} 3. Nf3 {[%emt 0:00:01]} Nf6 {[%emt 0:00:02]} 4. e3 {[%emt 0:00:13]} Bb4 {[%emt 0:00:03]} 5. Nd5 {[%emt 0:00:10]} e4 {[%emt 0:00:13]} 6. Nxb4 {[%emt 0:00:17]} Nxb4 {[%emt 0:00:02]} 7. Nd4 {[%emt 0:00:03]} c5 {[%emt 0:00:14] Inhibits a3. A28: English Opening: Four Knights Variation.} 8. Nb3 {[%emt 0:00:20]} (8. Nc2 $11 {keeps the balance.}) 8... b6 $17 {[%emt 0:00:12] Black is more active.} 9. d4 {[%emt 0:00:09]} exd3 {[%emt 0:00:04] Black is better.} 10. Bxd3 {[%emt 0:00:02]} Nxd3+ {[%emt 0:00:47]} 11. Qxd3 {[%emt 0:00:02]} d5 {[%emt 0:00:05] Against e4} 12. cxd5 {[%emt 0:00:07]} Qxd5 {[%emt 0:00:09]} 13. Qxd5 {[%emt 0:00:11]} Nxd5 {[%emt 0:00:01][%cal Bf6d5,Bd5c7,Bc7e6][%mdl 32]} 14. Bd2 {[%emt 0:00:15] [#]} Ba6 $146 {[%emt 0:00:33][%cal Bc8a6,Ba6b7,Bb7c6,Bc6a4][%mdl 32]} ({Predecessor:} 14... f5 15. O-O Be6 16. Nc1 O-O-O 17. Ne2 Kb7 18. Rfc1 Rd7 19. a3 Rc8 20. Be1 a5 {0-1 (65) Narciso Dublan,M (2390)-Velicka,P (2415) Brno 1995}) 15. e4 {[%emt 0:00:08]} Nc7 {[%emt 0:00:09]} 16. O-O-O {[%emt 0:00:21]} Ne6 {[%emt 0:00:12]} 17. Bc3 {[%emt 0:00:35]} Rd8 {[%emt 0:00:11]} 18. g3 {[%emt 0:00:19]} Bb7 {[%emt 0:00:13]} 19. f3 {[%emt 0:00:12]} Ke7 {[%emt 0:00:03]} 20. h4 {[%emt 0:00:06]} h5 {[%emt 0:00:04]} 21. a3 {[%emt 0:00:06]} f6 {[%emt 0:00:06]} 22. Rhe1 {[%emt 0:00:01]} (22. Rxd8 $11 Rxd8 23. Rd1) 22... Bc6 $15 {[%emt 0:00:02] Threatens to win with ...Rxd1+.} 23. Re3 $2 {[%emt 0:00:01][%mdl 8192] [#] Loses the game.} (23. Rxd8 $15 Rxd8 24. Nd2) 23... Rxd1+ $19 {[%emt 0:00:04]} 24. Kxd1 {[%emt 0:00:01]} Ba4 {[%emt 0:00:01]} 25. Kc2 {[%emt 0:00:05]} c4 {[%emt 0:00:02]} 26. Bb4+ {[%emt 0:00:01]} Kf7 {[%emt 0:00:01] Weighted Error Value: White=0.60/Black=0.06 (flawless)} 0-1

[Event "4th Tata Steel India Blitz Women 2022"]
[Site "Kolkota"]
[Date "2022.12.03"]
[Round "2.3"]
[White "Muzychuk, Anna"]
[Black "Muzychuk, Mariya"]
[Result "1/2-1/2"]
[ECO "C83"]
[WhiteElo "2525"]
[BlackElo "2528"]
[Annotator "TA"]
[PlyCount "99"]
[EventDate "2022.11.29"]
[EventType "tourn"]
[EventCountry "IND"]
[SourceTitle "playchess.com"]
[Source "ChessBase"]
[SourceQuality "1"]
[TimeControl "180+2"]

{[%evp 21,99,28,26,28,44,24,23,20,20,20,20,20,20,18,26,21,17,0,16,16,16,20,20,16,12,12,20,9,14,0,0,0,0,0,0,0,0,0,0,0,0,0,0,0,0,0,0,0,0,0,0,0,0,0,0,0,0,0,98,98,479,449,487,7,7,7,7,0,0,0,7,7,7,7,7,7,7,7,7,0]} 1. e4 {[%emt 0:00:01]} e5 {[%emt 0:00:00]} 2. Nf3 {[%emt 0:00:01]} Nc6 {[%emt 0:00:01]} 3. Bb5 a6 4. Ba4 {[%emt 0:00:01]} Nf6 {[%emt 0:00:01]} 5. O-O {[%emt 0:00:03]} Nxe4 {[%emt 0:00:01]} 6. d4 {[%emt 0:00:04]} b5 {[%emt 0:00:01]} 7. Bb3 {[%emt 0:00:01]} d5 {[%emt 0:00:00][%cal Bd7d5,Bd5d4,Bd4d3,Bd3c2][%mdl 32]} 8. dxe5 {[%emt 0:00:01]} Be6 {[%emt 0:00:01]} 9. c3 {[%emt 0:00:07]} Be7 {[%emt 0:00:01]} 10. Nbd2 {[%emt 0:00:06][%cal Bb1d2,Bd2b3,Bb3c5][%mdl 32]} Nc5 {[%emt 0:00:04]} 11. Bc2 {[%emt 0:00:09]} d4 {[%emt 0:00:01]} 12. Nb3 {[%emt 0:00:18][%cal Rf3d4] C83: Open Ruy Lopez: 9 c3 Be7.} d3 {[%emt 0:00:02]} 13. Nxc5 {[%emt 0:00:19]} (13. Bb1 $5 {[%cal Rb3c5]}) 13... dxc2 {[%emt 0:00:07]} 14. Qxd8+ {[%emt 0:00:01] White has an edge.} Rxd8 {[%emt 0:00:01]} ({Don't do} 14... Bxd8 15. Nxe6 fxe6 16. Be3 $16) 15. Nxe6 {[%emt 0:00:02]} fxe6 {[%emt 0:00:01]} 16. Be3 {[%emt 0:00:11]} Rd5 {[%emt 0:00:07]} 17. Rac1 {[%emt 0:00:14]} Nxe5 {[%emt 0:00:03]} 18. Nxe5 {[%emt 0:00:01]} Rxe5 {[%emt 0:00:01]} 19. c4 {[%emt 0:00:11]} b4 {[%emt 0:00:29]} (19... Bc5 $5 {[%cal Re5e3]}) 20. Rxc2 {[%emt 0:00:02]} Kf7 21. Rd1 {[%emt 0:00:11]} Rd8 {[%emt 0:00:10]} 22. Rxd8 {[%emt 0:00:04]} Bxd8 $11 {[%emt 0:00:01][%mdl 4096] Endgame KRB-KRB} 23. Kf1 {[%emt 0:00:04]} Bg5 {[%emt 0:00:10]} 24. Ba7 {[%emt 0:00:28]} Be7 {[%emt 0:00:30] [#]} 25. g3 $146 {[%emt 0:00:17]} ({Predecessor:} 25. Rd2 Ke8 26. Bd4 Ra5 27. Bxg7 Rxa2 28. Be5 a5 29. Ke2 Bd6 30. Bxd6 cxd6 31. b3 {0-1 (77) Sadhwani,R (2438)-Kaidanov,G (2544) Douglas 2018}) 25... Bc5 {[%emt 0:00:30]} 26. Bb8 {[%emt 0:00:06]} Bb6 {[%emt 0:00:10]} 27. c5 $1 {[%emt 0:00:05]} Rxc5 {[%emt 0:00:01]} 28. Rxc5 {[%emt 0:00:00]} Bxc5 {[%emt 0:00:01]} 29. Bxc7 {[%emt 0:00:01] KB-KB} Bd4 {[%emt 0:00:13]} 30. b3 {[%emt 0:00:02]} e5 31. f3 {[%emt 0:00:26]} Ke6 {[%emt 0:00:01] Prevents Bd6.} 32. Ke2 Kd5 {[%emt 0:00:02]} 33. Kd3 {[%emt 0:00:01]} h5 {[%emt 0:00:09]} 34. h3 {[%emt 0:00:07]} Bf2 {[%emt 0:00:06]} 35. g4 hxg4 {[%emt 0:00:02]} 36. hxg4 {[%emt 0:00:01]} g6 {[%emt 0:00:01]} 37. Ba5 {[%emt 0:00:04]} Bc5 {[%emt 0:00:01]} 38. Bd8 {[%emt 0:00:03]} Bf2 {[%emt 0:00:13]} 39. Be7 {[%emt 0:00:02]} Be1 {[%emt 0:00:01]} (39... Bc5 $1 $11 {remains equal.} 40. Bxc5 Kxc5) 40. Bf8 $1 $16 {[%emt 0:00:01]} Bc3 $2 {[%emt 0:00:19][%mdl 8192] [#]} (40... a5 $16) 41. a3 $1 $18 a5 {[#]} 42. a4 $2 {[%emt 0:00:02]} ({Only move:} 42. Be7 $1 $18) 42... Bd4 $11 {[%emt 0:00:02] The position is equal.} 43. Be7 {[%emt 0:00:07] Hoping for Bd8.} Bb6 {[%emt 0:00:01] Against Bd8} 44. Bh4 {[%emt 0:00:05]} (44. Bg5 $5) 44... Bc7 $1 {[%emt 0:00:05]} 45. Bf2 {[%emt 0:00:02]} Bd8 46. Be3 {[%emt 0:00:03]} (46. Bg1 $5) 46... Bc7 $1 {[%emt 0:00:05]} 47. Ba7 {[%emt 0:00:02]} Bd8 48. Bf2 {[%emt 0:00:05]} (48. Bg1 $5) 48... Bc7 $1 {[%emt 0:00:00]} 49. Be3 {[%emt 0:00:02]} Bd8 {[%emt 0:00:02]} 50. Bf2 {[%emt 0:00:02] Weighted Error Value: White=0.21 (precise) /Black=0.26 (precise)} 1/2-1/2